[Event "87th Spanish Championship 2022"]
[Site "Linares"]
[Date "2022.08.15"]
[Round "6.22"]
[White "Serrano Almendros, Alejandro"]
[Black "Martinez Fernandez, Adrian"]
[Result "0-1"]
[ECO "B90"]
[WhiteElo "2177"]
[BlackElo "2366"]
[Annotator "TA"]
[PlyCount "110"]
[EventDate "2022.08.11"]
[EventType "swiss"]
[EventCountry "ESP"]
[SourceTitle "playchess.com"]
[Source "ChessBase"]
[SourceQuality "1"]
[TimeControl "5400+30"]

{[%evp 15,110,-15,0,-23,58,15,16,12,9,35,39,30,102,112,99,80,132,145,171,158,171,153,210,190,193,197,193,-142,-153,-145,-144,-119,-141,-140,-120,-135,-135,-354,0,-349,-264,-448,-443,-620,-595,-581,-573,-932,-830,-1152,-1068,-1137,-564,-552,-541,-545,-533,-492,-507,-585,-513,-694,-660,-718,-713,-714,-702,-950,-927,-735,-279,-301,-297,-281,-215,-912,-870,-778,-474,-831,-802,-6135,-708,-2026,-1915,-1907,-1867,-29979,-11338,-29981,-29982,-29986,-29987,-29987,-29988,-29995,-29996]} 1. e4 {[%emt 0:00:03]} c5 {[%emt 0:00:07]} 2. Nf3 {[%emt 0:00:17][%cal Bg1f3,Bf3d4,Bd4b3][%mdl 32]} d6 {[%emt 0:00:06]} 3. d4 {[%emt 0:00:09]} Nf6 {[%emt 0:02:29]} 4. Nc3 {[%emt 0:00:34]} cxd4 {[%emt 0:00:07]} 5. Nxd4 {[%emt 0:00:05]} a6 {[%emt 0:00:08]} 6. Qf3 {[%emt 0:00:07]} g6 {[%emt 0:02:36]} 7. h3 {[%emt 0:00:03]} Bg7 {[%emt 0:00:08]} 8. Be3 {[%emt 0:00:13]} O-O {[%emt 0:00:09]} 9. O-O-O {[%emt 0:00:06] B70: Sicilian Dragon: 6 g3 and 6 Be2 (without a later Be3).} Qa5 {[%emt 0:01:06]} (9... Bd7 $11) 10. Nb3 {[%emt 0:01:32]} Qc7 {[%emt 0:00:28]} 11. g4 {[%emt 0:00:19] The position is equal.} Be6 {[%emt 0:04:01]} 12. Qg2 {[%emt 0:06:23]} Nc6 {[%emt 0:10:28] [#]} 13. f4 $146 {[%emt 0:00:42]} ({Predecessor:} 13. Kb1 Nd7 14. Nd5 Bxd5 15. exd5 Na5 16. Bd4 Nxb3 17. Bxg7 Kxg7 18. axb3 Rfc8 19. f4 {0-1 (65) Mansson,P (2140)-Carstensen,J (2359) Sweden 2015}) 13... Nb4 {[%emt 0:01:21]} (13... b5 $11) 14. Kb1 $1 $16 {[%emt 0:15:48]} b5 {[%emt 0:17:08]} 15. Nd4 {[%emt 0:05:06] Black must now prevent a3.} Rfc8 {[%emt 0:04:12]} (15... Rac8 $142) 16. a3 {[%emt 0:04:22]} Nc6 17. Nxc6 {[%emt 0:05:27]} Qxc6 {[%emt 0:02:05]} 18. e5 {[%emt 0:00:08]} dxe5 {[%emt 0:04:38] [#]} (18... Ne8 $16) 19. Rd8+ $3 $18 {[%emt 0:01:52][%mdl 576] Deflection} Rxd8 {[%emt 0:01:25]} 20. Qxc6 {[%emt 0:00:05]} Nd5 {[%emt 0:02:31]} 21. Bd2 {[%emt 0:18:54]} ({White must play} 21. f5 $1 $18 {[%cal Rf5e6]} Rac8 22. Qxa6 $1) 21... Rac8 $1 $17 {[%emt 0:00:40]} 22. Qxa6 {[%emt 0:09:05]} Nxc3+ {[%emt 0:00:26]} 23. bxc3 {[%emt 0:00:08]} Rxd2 {[%emt 0:00:25]} 24. Bd3 {[%emt 0:03:14]} exf4 {[%emt 0:04:07]} 25. Re1 {[%emt 0:00:59]} Rxc3 {[%emt 0:06:58] Strongly threatening ...h6. Black is more active.} 26. Qxb5 $2 {[%emt 0:05:32] [#]} (26. Qa8+ $17 Bf8 27. Rf1) 26... f3 $2 $40 {[%emt 0:10:54][%mdl 128] Black is up to no good.} ({Stronger than} 26... Rxa3 27. Qb8+ Bf8 28. Qxf4 $11) ({And not} 26... Rc8 27. a4 $17) ({Black should play} 26... h6 $1 $19 27. Qa4 f3) 27. Qb8+ $2 {[%emt 0:01:12][%mdl 8192]} (27. Qe8+ $11 Bf8 28. Rxe6 fxe6 29. Bxg6 hxg6 30. Qxg6+ Kh8 31. Qh5+ Kg8 32. Qg6+ (32. Qg5+ Bg7 $11) 32... Bg7 33. Qe8+ Bf8 34. Qg6+) 27... Rc8 $19 {[%emt 0:00:46] Really sharp!} 28. Qf4 {[%emt 0:06:24]} (28. Qb7) 28... Bc3 {[%emt 0:05:54]} 29. Rf1 {[%emt 0:02:56]} Bd5 {[%emt 0:00:49]} 30. a4 {[%emt 0:01:25]} e5 {[%emt 0:03:05]} 31. Qe3 {[%emt 0:00:00]} e4 {[%emt 0:00:23]} 32. Ba6 {[%emt 0:02:29]} Rc7 {[%emt 0:00:51]} 33. Kc1 {[%emt 0:00:34] [#]} Rxc2+ $3 {[%emt 0:03:32][%mdl 512]} 34. Kxc2 {[%emt 0:00:23]} Bd4+ $1 {[%emt 0:00:00][%mdl 64] Discovered Attack. A strong pair of Bishops.} 35. Kd2 {[%emt 0:00:18]} Bxe3+ {[%emt 0:00:02]} 36. Kxe3 {[%emt 0:00:01][%mdl 4096] Endgame KRB-KRB} f5 {[%emt 0:04:54]} 37. gxf5 {[%emt 0:01:31]} gxf5 {[%emt 0:00:01]} 38. Rd1 {[%emt 0:00:37]} Bb3 {[%emt 0:01:33][%csl LRa4,LRd1]} 39. Ra1 {[%emt 0:02:59]} Kf7 {[%emt 0:01:08]} 40. a5 {[%emt 0:00:28]} Ke6 {[%emt 0:00:26] ...Ke5 is the strong threat.} 41. Kd4 {[%emt 0:01:18]} Kf6 {[%emt 0:03:06] Threatens to win with ...Rd7+.} 42. Bb5 {[%emt 0:01:21]} Kg5 $2 {[%emt 0:00:07]} (42... Rb7 43. Be8 Rb8) 43. a6 {[%emt 0:00:40]} Ra7 {[%emt 0:00:01] Hoping for ...Kf4.} 44. Ke5 {[%emt 0:03:37][%cal Oh3h4]} f2 {[%emt 0:00:01]} 45. Bf1 $2 {[%emt 0:02:22]} (45. h4+ Kg6 46. Kd4) 45... e3 {[%emt 0:02:00]} 46. Be2 {[%emt 0:01:10]} Bc2 {[%emt 0:00:40]} 47. Rc1 {[%emt 0:00:28]} (47. h4+ $142 Kxh4 48. Kf4) 47... Be4 {[%emt 0:00:25] aiming for ...Re7+.} 48. Rc3 {[%emt 0:00:32] [#]} Bg2 {[%emt 0:00:26]} (48... Bf3 $142 $1 {[%mdl 512]} 49. h4+ (49. Bb5 e2) 49... Kxh4) 49. Rc1 {[%emt 0:00:30]} Re7+ {[%emt 0:02:05]} 50. Kd6 {[%emt 0:00:30]} Re4 {[%emt 0:00:01] And now ...Rd4+ would win.} 51. Ra1 Rd4+ {[%emt 0:00:14]} 52. Kc5 {[%emt 0:00:57]} Rd2 {[%emt 0:00:09] Black mates.} 53. Bf1 {[%emt 0:00:33]} Bxf1 {[%emt 0:00:16]} 54. Rxf1 {[%emt 0:00:21]} e2 {[%emt 0:00:35]} 55. a7 {[%emt 0:00:02]} exf1=Q {[%emt 0:00:10] Weighted Error Value: White=1.00/Black=0.33} 0-1

[Event "87th Spanish Championship 2022"]
[Site "Linares"]
[Date "2022.08.15"]
[Round "6.23"]
[White "Alvarez Pampillon, Antonio"]
[Black "Gomez Dieguez, David"]
[Result "0-1"]
[ECO "A15"]
[WhiteElo "2019"]
[BlackElo "2372"]
[Annotator "TA"]
[PlyCount "102"]
[EventDate "2022.08.11"]
[EventType "swiss"]
[EventCountry "ESP"]
[SourceTitle "playchess.com"]
[Source "ChessBase"]
[SourceQuality "1"]
[TimeControl "5400+30"]

{[%evp 14,102,13,11,31,0,-9,-11,4,-16,-16,-41,-16,-13,38,53,64,-37,-20,-30,-47,-43,-54,-427,-429,-926,-76,-79,-64,-56,-46,-131,-66,-60,-65,-62,-41,-22,-5,-93,-83,-88,-98,-87,-93,-80,-55,-50,-56,-74,-64,-67,-67,-72,-60,-70,-49,-130,-131,-160,-134,-221,-191,-300,-300,-358,-354,-532,-514,-506,-481,-957,-521,-516,-508,-441,-365,-343,-219,-677,-673,-650,-357,-1225,-1167,-8283,-5636,-29991,-29992,-29992,-29969]} 1. c4 {[%emt 0:00:06]} Nf6 {[%emt 0:00:21]} 2. g3 {[%emt 0:00:12]} e6 {[%emt 0:00:43]} 3. Bg2 {[%emt 0:00:06]} d5 {[%emt 0:00:05]} 4. Nf3 {[%emt 0:00:43]} d4 {[%emt 0:00:42]} 5. d3 {[%emt 0:00:51]} c5 {[%emt 0:00:16]} 6. e3 {[%emt 0:00:21]} Nc6 {[%emt 0:00:59]} 7. exd4 {[%emt 0:00:07]} cxd4 {[%emt 0:00:19]} 8. O-O {[%emt 0:00:20]} Bd6 {[%emt 0:00:44] A13: English Opening: 1...e6.} 9. Re1 {[%emt 0:00:51]} O-O {[%emt 0:01:01]} 10. Na3 {[%emt 0:02:39]} e5 {[%emt 0:09:41] The position is equal.} 11. Nb5 {[%emt 0:11:09]} (11. c5 $5 {[%cal Rc5d6]} Bc7 12. Nc4 $11) 11... Bb8 {[%emt 0:01:22]} 12. b4 {[%emt 0:01:11] [#]} a6 $146 {[%emt 0:22:01]} ({Predecessor:} 12... h6 13. Rb1 Re8 14. Nd2 Bf5 15. Qe2 a6 16. Na3 Bd6 17. c5 Bc7 18. Nac4 Bg4 {0-1 (38) Cu Hor,W (2286)-Mareco,S (2612) San Salvador 2016}) 13. Na3 {[%emt 0:00:06]} Nxb4 {[%emt 0:00:07]} (13... Re8 $11) 14. Nxe5 $14 {[%emt 0:00:42]} Qa5 {[%emt 0:05:14] [#]} 15. Nf3 {[%emt 0:06:10]} (15. Qb3 $1 $14 Nc6 (15... Bd6 16. Bd2) 16. Nf3) 15... Bf5 $1 $15 {[%emt 0:06:06]} 16. Bf1 {[%emt 0:17:14]} Bg4 $36 {[%emt 0:03:10][%mdl 2048] Black has good play.} 17. Bb2 {[%emt 0:01:08]} Qh5 {[%emt 0:07:00]} 18. Qd2 $2 {[%emt 0:12:03][%mdl 8192]} (18. Bg2 $1 $15) 18... Bxf3 $19 {[%emt 0:04:51]} 19. Qxb4 {[%emt 0:00:11]} (19. Bxd4 $142 Nc6 20. Bxf6 gxf6 21. Nc2) 19... Bc7 $2 {[%emt 0:01:38]} (19... Ng4 $19 {[%csl Gg4][%cal Rh5h2] is more deadly.} 20. h3 Qh4 $3 {[%mdl 512]}) 20. Qe7 $17 {[%emt 0:14:37]} Ng4 {[%emt 0:05:24][%csl Gg4][%cal Rh5h2]} 21. h3 {[%emt 0:00:01]} Ba5 {[%emt 0:02:45]} 22. Re4 {[%emt 0:00:58] [#]} ({White should play} 22. Bxd4 $15 Bxe1 23. Rxe1) 22... Bxe4 {[%emt 0:01:26]} (22... Bd8 $1 $17 {[%cal Rd8e7]} 23. Qd7 (23. Qxb7 Bf6 $17) 23... Bxe4 24. Qxg4 Qxg4 25. hxg4 Bf3 26. Bxd4 Bxg4) 23. Qxe4 $15 {[%emt 0:00:01]} Nf6 {[%emt 0:01:28]} ({Don't play} 23... Ne5 24. g4 Nxg4 25. hxg4 $16) 24. Qxd4 {[%emt 0:00:15]} Rad8 {[%emt 0:04:37]} 25. Qf4 {[%emt 0:01:20]} Rd7 {[%emt 0:02:46]} 26. Be5 {[%emt 0:08:24] [#] Inhibits Bc7.} (26. Bxf6 $11 {remains equal.} gxf6 27. Rb1) 26... Bd2 $1 $17 {[%emt 0:03:14]} 27. Qxd2 {[%emt 0:01:15]} Qxe5 {[%emt 0:00:05]} 28. Re1 {[%emt 0:00:59]} Qd4 {[%emt 0:01:45] Black is more active.} 29. Qb4 {[%emt 0:01:14]} Re8 {[%emt 0:07:44] Threatens to win with ...Rxe1.} 30. Nc2 {[%emt 0:01:23]} Qd6 {[%emt 0:00:06]} 31. c5 {[%emt 0:08:05]} Qd5 {[%emt 0:00:32]} 32. Rxe8+ {[%emt 0:01:18]} Nxe8 {[%emt 0:00:01]} 33. a3 {[%emt 0:05:15]} g6 {[%emt 0:00:27]} 34. d4 {[%emt 0:00:29]} Nf6 {[%emt 0:01:04]} 35. Bg2 {[%emt 0:00:03] White is now going downhill.} (35. Qc3 $1 $15) 35... Qa2 {[%emt 0:00:17]} 36. Qa4 {[%emt 0:03:07]} Re7 {[%emt 0:01:40] ...Re2 is the strong threat.} 37. Ne3 {[%emt 0:01:06]} (37. Bf1 $17) 37... Ne4 {[%emt 0:00:18]} 38. Qc2 {[%emt 0:02:15]} (38. Bxe4 {was the only chance.} Rxe4 39. Qb4) 38... Qa1+ $19 {[%emt 0:00:05]} 39. Kh2 {[%emt 0:00:52]} Qxd4 {[%emt 0:00:26]} 40. Ng4 {[%emt 0:00:46]} (40. Bxe4 $142 Qxe4 41. Qd2) 40... Nxc5 {[%emt 0:01:10]} 41. Qc1 {[%emt 0:00:01]} Ne6 {[%emt 0:03:03] Against Qg5} 42. Bxb7 {[%emt 0:00:41]} (42. Bd5 $142) 42... Rc7 {[%emt 0:00:48]} 43. Qb1 {[%emt 0:00:52]} h5 {[%emt 0:00:15]} 44. Ne3 {[%emt 0:00:12]} Qd2 {[%emt 0:00:31]} 45. Kg2 {[%emt 0:00:34]} h4 {[%emt 0:02:23] Strongly threatening ...hxg3.} 46. Qe4 $2 {[%emt 0:00:43]} (46. Bd5 hxg3 47. Qb8+ Kg7 48. Kxg3) 46... hxg3 {[%emt 0:00:11]} 47. Kxg3 {[%emt 0:00:01]} Rc1 {[%emt 0:00:37] aiming for ...Rg1+.} 48. Bxa6 $2 {[%emt 0:00:58]} (48. Qe5) 48... Qd6+ {[%emt 0:00:19]} 49. f4 {[%emt 0:00:24]} Qxa6 {[%emt 0:00:28]} 50. f5 {[%emt 0:00:02]} Qd6+ {[%emt 0:00:23]} 51. Kh4 {[%emt 0:00:27]} g5+ {[%emt 0:01:18] Weighted Error Value: White=1.10/Black=0.44} 0-1

[Event "87th Spanish Championship 2022"]
[Site "Linares"]
[Date "2022.08.15"]
[Round "6.24"]
[White "Masague Artero, Guerau"]
[Black "Garcia Escoda, Marc"]
[Result "1-0"]
[ECO "E17"]
[WhiteElo "2319"]
[BlackElo "2130"]
[Annotator "TA"]
[PlyCount "55"]
[EventDate "2022.08.11"]
[EventType "swiss"]
[EventCountry "ESP"]
[SourceTitle "playchess.com"]
[Source "ChessBase"]
[SourceQuality "1"]
[TimeControl "5400+30"]

{[%evp 13,55,12,27,26,25,22,26,11,73,52,48,50,48,58,58,35,58,12,50,51,118,96,311,309,306,297,295,300,392,435,530,515,673,659,662,647,1040,1056,984,962,1247,1217,1421,1289]} 1. d4 {[%emt 0:00:04]} e6 {[%emt 0:00:14]} 2. c4 {[%emt 0:00:10]} Nf6 {[%emt 0:01:00]} 3. Nf3 {[%emt 0:00:08]} b6 {[%emt 0:00:44]} 4. g3 {[%emt 0:00:11]} Bb7 {[%emt 0:00:08]} 5. Bg2 {[%emt 0:00:08]} Be7 {[%emt 0:00:17]} 6. O-O {[%emt 0:00:07]} O-O {[%emt 0:00:05]} 7. Re1 {[%emt 0:00:08]} Qc8 {[%emt 0:00:46]} 8. Nc3 {[%emt 0:13:04] E17: Queen's Indian: 4 g3 Bb7 5 Bg2 Be7.} Ne4 {[%emt 0:00:16]} 9. Nxe4 {[%emt 0:00:18]} Bxe4 {[%emt 0:00:08]} 10. Bh3 {[%emt 0:00:04] White has an edge.} f5 {[%emt 0:22:38] [#]} (10... Nc6 $11 {remains equal.}) 11. Nd2 $146 {[%emt 0:05:14]} ({Predecessor:} 11. d5 Bxf3 12. exf3 Bf6 13. Qe2 Na6 14. dxe6 dxe6 15. Qxe6+ Qxe6 16. Rxe6 Rad8 17. Re1 {1-0 (54) Colpe,M (2386)-Wertjanz,D (2300) Graz 2016}) 11... Bb7 {[%emt 0:01:06] Inhibits d5.} 12. e4 {[%emt 0:02:06] aiming for exf5.} Nc6 {[%emt 0:08:31]} 13. d5 {[%emt 0:11:52]} Nd4 {[%emt 0:03:32]} 14. exf5 {[%emt 0:01:11]} Nxf5 {[%emt 0:06:44]} 15. Ne4 {[%emt 0:05:58]} (15. Nf3 $14) 15... exd5 {[%emt 0:13:45]} 16. cxd5 {[%emt 0:00:13]} Bc5 {[%emt 0:00:32]} ({Black should try} 16... Qe8 $14) 17. Bf4 {[%emt 0:04:10][%cal Bc1f4,Bf4e3,Be3c5][%mdl 32] Strongly threatening Rc1.} Nh4 $2 {[%emt 0:17:14] [#] Loses the game.} 18. Rc1 $18 {[%emt 0:21:08]} Ng6 {[%emt 0:00:51]} 19. Nxc5 {[%emt 0:01:44]} bxc5 {[%emt 0:01:27]} 20. Be3 {[%emt 0:00:53]} Ne5 {[%emt 0:01:11] [#] ...Nf3+ is the strong threat.} 21. f4 {[%emt 0:00:25]} Ng6 {[%emt 0:03:14] White is clearly winning.} 22. Bxc5 {[%emt 0:03:01]} Re8 {[%emt 0:00:02]} 23. Rxe8+ {[%emt 0:03:06]} Qxe8 {[%emt 0:00:01]} 24. Qb3 {[%emt 0:00:09]} Nxf4 {[%emt 0:07:37]} 25. gxf4 (25. Qxb7 Nxh3+ 26. Kf1 (26. Kg2 $2 Rb8 $19) 26... Rb8 27. Qxc7 Qf7+ 28. Ke1 (28. Kg2 {is a self mate.} Rxb2+) 28... Re8+ 29. Kd2 Qxd5+ 30. Kc2 Ng5 $17) 25... Qg6+ {[%emt 0:01:11]} 26. Bg2 {[%emt 0:01:14]} Re8 {[%emt 0:00:41]} 27. Qxb7 {[%emt 0:00:29]} Re2 {[%emt 0:00:20]} 28. Qb8+ {[%emt 0:00:08] Weighted Error Value: White=0.06 (flawless) /Black=0.56} 1-0

[Event "87th Spanish Championship 2022"]
[Site "Linares"]
[Date "2022.08.15"]
[Round "6.25"]
[White "Domingo Nunez, Alejandro"]
[Black "Del Carmen Hernandez, Aimer"]
[Result "1-0"]
[ECO "B30"]
[WhiteElo "2335"]
[BlackElo "2066"]
[Annotator "TA"]
[PlyCount "45"]
[EventDate "2022.08.11"]
[EventType "swiss"]
[EventCountry "ESP"]
[SourceTitle "playchess.com"]
[Source "ChessBase"]
[SourceQuality "1"]
[TimeControl "5400+30"]

{[%evp 10,45,47,42,72,53,130,127,161,154,160,156,155,154,158,158,152,156,155,158,156,116,108,113,114,109,544,536,538,517,793,381,1345,1343,29975,29976,5689,5685]} 1. e4 {[%emt 0:00:02]} c5 {[%emt 0:01:22]} 2. Nf3 {[%emt 0:01:04]} Nc6 {[%emt 0:00:05]} 3. Bb5 {[%emt 0:00:07]} d6 {[%emt 0:02:07]} 4. O-O {[%emt 0:00:15]} Bd7 {[%emt 0:04:52]} 5. Re1 {[%emt 0:03:50]} e6 {[%emt 0:02:46]} 6. c3 {[%emt 0:00:17]} Nge7 {[%emt 0:09:22] B51: Sicilian: Moscow Variation (3 Bb5+) without 3...Bd7.} 7. d4 {[%emt 0:01:39][%cal Bd2d4,Bd4d5][%mdl 32]} Qb6 {[%emt 0:07:10]} (7... Ng6 $14) 8. Ba4 $16 {[%emt 0:18:39] [#]} Rd8 $146 {[%emt 0:27:31] White is better.} ({Predecessor:} 8... e5 9. dxe5 dxe5 10. Na3 Ng6 11. Nc4 Qc7 12. Ne3 Rd8 13. Nd5 Qb8 14. Qe2 Bd6 {1-0 (39) Peshkova,T (2124)-Strutinskaya,G (2308) Serpukhov 2002}) 9. d5 {[%emt 0:02:11]} Ne5 {[%emt 0:00:31]} 10. Bxd7+ {[%emt 0:03:26]} Rxd7 {[%emt 0:01:33] [#]} 11. dxe6 $1 {[%emt 0:00:31]} Nxf3+ {[%emt 0:00:19]} 12. Qxf3 {[%emt 0:00:02]} ({Much weaker is} 12. gxf3 $6 fxe6 13. f4 g6 $11) 12... fxe6 {[%emt 0:00:09]} 13. Qg4 {[%emt 0:01:11] White is more active.} e5 {[%emt 0:00:46]} 14. Nd2 {[%emt 0:00:13]} Ng6 {[%emt 0:01:01]} 15. Nf3 {[%emt 0:05:48]} Be7 {[%emt 0:02:01]} 16. h4 {[%emt 0:00:13] [#] Hoping for h5.} Bf6 {[%emt 0:03:29]} 17. h5 {[%emt 0:00:44]} Nf4 {[%emt 0:00:11][%mdl 8192] Loses the game.} (17... Nf8 $16 {is more resistant.}) 18. Bxf4 $18 {[%emt 0:02:42]} exf4 {[%emt 0:00:04]} 19. Rad1 {[%emt 0:18:07] And now e5 would win.} ({Not} 19. e5 dxe5 20. Nxe5 Bxe5 $18) 19... Qc7 {[%emt 0:04:20]} (19... Rc7 $142 20. e5 dxe5 21. Nxe5 O-O) 20. h6 {[%emt 0:00:07]} (20. e5 $142 {Intending exd6+ and mate.} Bxe5 21. Nxe5) 20... Be5 {[%emt 0:14:20]} (20... Rf8 21. e5 (21. Qxf4 Bxc3 22. Qh4 Bxe1 $15) 21... dxe5 22. hxg7 Bxg7) 21. Nxe5 {[%emt 0:00:19]} dxe5 {[%emt 0:00:04]} 22. Qe6+ {[%emt 0:00:07]} Re7 {[%emt 0:00:16]} 23. hxg7 {[%emt 0:00:04] Weighted Error Value: White=0.30/Black=1.23} 1-0

[Event "87th Spanish Championship 2022"]
[Site "Linares"]
[Date "2022.08.15"]
[Round "6.26"]
[White "Hernandez Estevez, Yudania"]
[Black "Garrido Outon, Alex"]
[Result "1-0"]
[ECO "B92"]
[WhiteElo "2193"]
[BlackElo "2436"]
[Annotator "TA"]
[PlyCount "73"]
[EventDate "2022.08.11"]
[EventType "swiss"]
[EventCountry "ESP"]
[SourceTitle "playchess.com"]
[Source "ChessBase"]
[SourceQuality "1"]
[TimeControl "5400+30"]

{[%evp 17,73,0,0,1,17,19,20,22,17,6,27,16,15,-31,25,15,12,-31,-29,-31,-14,-67,-14,-14,-14,-14,0,-28,0,-16,36,0,90,78,85,85,132,66,114,104,257,229,234,219,308,273,479,461,880,873,768,539,622,638,948,887,856,674]} 1. e4 {[%emt 0:00:02]} c5 {[%emt 0:00:08]} 2. Nf3 {[%emt 0:00:06]} d6 {[%emt 0:00:05]} 3. d4 {[%emt 0:00:06]} cxd4 {[%emt 0:00:06]} 4. Nxd4 {[%emt 0:00:05]} Nf6 {[%emt 0:00:07]} 5. Nc3 {[%emt 0:00:05]} a6 {[%emt 0:00:05]} 6. Be2 {[%emt 0:00:16]} e5 {[%emt 0:00:08]} 7. Nb3 {[%emt 0:00:06]} Be7 {[%emt 0:00:10]} 8. O-O {[%emt 0:00:07]} O-O {[%emt 0:00:07]} 9. Qd3 {[%emt 0:00:07]} Be6 {[%emt 0:00:58]} 10. Bd2 {[%emt 0:00:24] B92: Sicilian Najdorf: 6 Be2.} Nbd7 {[%emt 0:01:35]} 11. Nd5 Bxd5 {[%emt 0:02:59]} 12. exd5 {[%emt 0:00:49] The position is equal.} Ne8 {[%emt 0:06:50]} 13. Qh3 g6 {[%emt 0:06:04] [#]} 14. c4 $146 {[%emt 0:15:37]} ({Predecessor:} 14. Na5 Qc7 15. c4 f5 16. b4 Nef6 17. Rac1 Ne4 18. Bh6 Rf7 19. Bd3 Nef6 20. c5 {1-0 (53) Carapinha,F (2345)-Malkov,A (2209) ICCF email 2013}) 14... f5 {[%emt 0:09:22]} 15. Rae1 {[%emt 0:03:59]} (15. Na5 $11) 15... Ng7 {[%emt 0:05:12]} (15... Nef6 $15) 16. Bc3 {[%emt 0:04:48]} (16. Na5 $5 {[%cal Ra5b7]}) 16... a5 17. a4 {[%emt 0:05:51][%cal Oc4c5]} (17. c5 $5) 17... Bf6 {[%emt 0:05:03]} 18. Qe3 {[%emt 0:10:48]} b6 {[%emt 0:07:39] Inhibits c5.} 19. f3 {[%emt 0:04:18]} ({White should play} 19. Qd2 $11) 19... Nc5 {[%emt 0:05:40]} (19... Bh4 $15 20. Rb1 f4) 20. Nxc5 $11 {[%emt 0:01:45]} bxc5 {[%emt 0:01:44]} 21. Bd3 {[%emt 0:02:21]} Ra7 22. Kh1 {[%emt 0:03:44]} Bg5 {[%emt 0:16:59]} 23. Qf2 {[%emt 0:06:48]} h5 {[%emt 0:01:51]} (23... Nh5 $11) 24. g3 {[%emt 0:02:15][%cal Bg2g3,Bg3g4][%mdl 32]} Bf6 {[%emt 0:02:46]} (24... h4 $1 $11) 25. Qg2 {[%emt 0:01:59]} Kf7 {[%emt 0:10:34]} 26. g4 $36 {[%emt 0:06:36][%mdl 2048] White is on the roll.} Rh8 {[%emt 0:01:22]} (26... g5 $142) 27. Rg1 {[%emt 0:01:24] White is more active.} (27. gxf5 $16 gxf5 28. Rg1) 27... Kf8 (27... hxg4 $14 28. fxg4 f4) 28. gxf5 $16 {[%emt 0:05:26] [#] Threatens to win with f4.} gxf5 $2 {[%emt 0:01:48] This costs Black the game.} (28... g5 $16 29. Qd2 h4) 29. Qh3 {[%emt 0:01:22]} Rf7 {[%emt 0:00:43]} 30. Rg6 {[%emt 0:00:19] Black must now prevent Reg1.} ({And not} 30. Bxf5 Nxf5 31. Qxf5 Bh4 $17) 30... f4 {[%emt 0:00:43]} (30... Bg5 $142 31. Qg2 Bf4) 31. Reg1 $18 {[%emt 0:00:54] aiming for Qg2.} Be7 $2 {[%emt 0:02:03]} (31... Ra7 32. Qg2 Qe7) 32. Qg2 {[%emt 0:01:46] White is clearly winning.} Bf6 {[%emt 0:00:04] [#]} (32... Rg8 $142 33. Rh6 Bh4) 33. Bxa5 $1 {[%emt 0:02:13][%mdl 512]} Qd7 {[%emt 0:00:04]} (33... Qe7 34. b4) 34. Bc3 {A strong pair of Bishops.} Nf5 {[%emt 0:04:15]} 35. Qh3 {[%emt 0:05:04]} Be7 {[%emt 0:00:04]} 36. a5 {[%emt 0:01:50]} Ng3+ {[%emt 0:00:04]} 37. R1xg3 {[%emt 0:00:21] Weighted Error Value: White=0.27 (precise) /Black=0.46} 1-0